[Event "Early-Titled-Tuesday-Blitz-May-07-2024"]
[Site "Chess.com"]
[Date "2024.05.07"]
[Round "1"]
[White "SuanTiltado"]
[Black "a_kandil"]
[Result "1/2-1/2"]
[WhiteElo "2258"]
[BlackElo "2582"]
[TimeControl "180+1"]
[EndTime "8:09:47 PDT"]
[Termination "Game drawn by stalemate"]

1. d4 {[%clk 0:02:55.7]} 1... Nf6 {[%clk 0:03:00.2]} 2. c4 {[%clk 0:02:53.4]}
2... e6 {[%clk 0:03:00.6]} 3. Nf3 {[%clk 0:02:53.1]} 3... Bb4+ {[%clk
0:03:00.7]} 4. Nbd2 {[%clk 0:02:53]} 4... d5 {[%clk 0:03:00.2]} 5. e3 {[%clk
0:02:48.2]} 5... O-O {[%clk 0:02:59.5]} 6. a3 {[%clk 0:02:44.5]} 6... Be7 {[%clk
0:02:58.9]} 7. Be2 {[%clk 0:02:41.2]} 7... c5 {[%clk 0:02:58.9]} 8. O-O {[%clk
0:02:40.9]} 8... cxd4 {[%clk 0:02:58.7]} 9. Nxd4 {[%clk 0:02:35.7]} 9... Nc6
{[%clk 0:02:58.4]} 10. N4f3 {[%clk 0:02:25.2]} 10... e5 {[%clk 0:02:36.1]} 11.
cxd5 {[%clk 0:02:11.2]} 11... Nxd5 {[%clk 0:02:37]} 12. Nc4 {[%clk 0:02:06.3]}
12... f6 {[%clk 0:02:24.8]} 13. b4 {[%clk 0:02:01.4]} 13... Be6 {[%clk 0:02:24]}
14. Bb2 {[%clk 0:02:01]} 14... b5 {[%clk 0:02:11.7]} 15. Ncd2 {[%clk 0:01:58.5]}
15... Qb6 {[%clk 0:02:10.2]} 16. Rc1 {[%clk 0:01:49.8]} 16... Rac8 {[%clk
0:02:09.4]} 17. Ne4 {[%clk 0:01:47.1]} 17... Rfd8 {[%clk 0:02:08.4]} 18. Qe1
{[%clk 0:01:46.4]} 18... Kh8 {[%clk 0:02:04.6]} 19. Nc5 {[%clk 0:01:46]} 19...
Bg8 {[%clk 0:02:04.6]} 20. Nd2 {[%clk 0:01:37.3]} 20... f5 {[%clk 0:01:55.7]}
21. Ndb3 {[%clk 0:01:32.7]} 21... Bf6 {[%clk 0:01:46.4]} 22. e4 {[%clk
0:01:29.8]} 22... fxe4 {[%clk 0:01:43.4]} 23. Bg4 {[%clk 0:01:29.3]} 23... Rc7
{[%clk 0:01:37.4]} 24. Qxe4 {[%clk 0:01:28.8]} 24... Nf4 {[%clk 0:01:27.8]} 25.
g3 {[%clk 0:01:23.7]} 25... Ng6 {[%clk 0:01:05.7]} 26. Ne6 {[%clk 0:01:15.9]}
26... Bxe6 {[%clk 0:01:04.4]} 27. Bxe6 {[%clk 0:01:16.8]} 27... Nd4 {[%clk
0:00:58.2]} 28. Bxd4 {[%clk 0:01:01.1]} 28... exd4 {[%clk 0:00:50.3]} 29. Nc5
{[%clk 0:00:58.4]} 29... Re8 {[%clk 0:00:45.3]} 30. Qg4 {[%clk 0:00:53.9]} 30...
Ne5 {[%clk 0:00:41.2]} 31. Qh5 {[%clk 0:00:51.5]} 31... Rce7 {[%clk 0:00:34.2]}
32. Bd5 {[%clk 0:00:45.2]} 32... d3 {[%clk 0:00:29]} 33. Be4 {[%clk 0:00:44.4]}
33... g6 {[%clk 0:00:28.5]} 34. Qd1 {[%clk 0:00:40.4]} 34... Rd8 {[%clk
0:00:27.1]} 35. Qd2 {[%clk 0:00:38.8]} 35... Nc4 {[%clk 0:00:24]} 36. Qf4 {[%clk
0:00:36.8]} 36... d2 {[%clk 0:00:22.6]} 37. Rcd1 {[%clk 0:00:35.6]} 37... Be5
{[%clk 0:00:21.2]} 38. Qh4 {[%clk 0:00:33.4]} 38... Qf6 {[%clk 0:00:20.9]} 39.
Qxf6+ {[%clk 0:00:30.2]} 39... Bxf6 {[%clk 0:00:21.8]} 40. Bd3 {[%clk 0:00:28]}
40... Nb2 {[%clk 0:00:21.9]} 41. Rxd2 {[%clk 0:00:27.5]} 41... Bc3 {[%clk
0:00:19.5]} 42. Rxb2 {[%clk 0:00:25.2]} 42... Bxb2 {[%clk 0:00:19.6]} 43. Bxb5
{[%clk 0:00:20.7]} 43... Bd4 {[%clk 0:00:18.6]} 44. Kg2 {[%clk 0:00:17.6]} 44...
Bxc5 {[%clk 0:00:18.8]} 45. bxc5 {[%clk 0:00:18]} 45... Rc7 {[%clk 0:00:19.2]}
46. c6 {[%clk 0:00:18.3]} 46... Rb8 {[%clk 0:00:19.6]} 47. a4 {[%clk 0:00:17]}
47... a6 {[%clk 0:00:20.1]} 48. Bxa6 {[%clk 0:00:17.7]} 48... Rxc6 {[%clk
0:00:20.7]} 49. Bb5 {[%clk 0:00:18.6]} 49... Rc2 {[%clk 0:00:21.1]} 50. Re1
{[%clk 0:00:19.2]} 50... Rb7 {[%clk 0:00:20.1]} 51. Re8+ {[%clk 0:00:18.2]}
51... Kg7 {[%clk 0:00:20.8]} 52. Re2 {[%clk 0:00:18]} 52... Rxe2 {[%clk
0:00:20.9]} 53. Bxe2 {[%clk 0:00:17.9]} 53... Rb2 {[%clk 0:00:21.6]} 54. Bb5
{[%clk 0:00:18.8]} 54... Ra2 {[%clk 0:00:22.3]} 55. h4 {[%clk 0:00:19.1]} 55...
Kf6 {[%clk 0:00:22.9]} 56. Kf3 {[%clk 0:00:20]} 56... Ke5 {[%clk 0:00:23.5]} 57.
Kg2 {[%clk 0:00:19.9]} 57... Ke4 {[%clk 0:00:23.5]} 58. Bc6+ {[%clk 0:00:20.3]}
58... Kd4 {[%clk 0:00:23.8]} 59. Bb5 {[%clk 0:00:20.9]} 59... Kc3 {[%clk
0:00:24.1]} 60. Kf1 {[%clk 0:00:20.5]} 60... Kd2 {[%clk 0:00:24.4]} 61. Bc6
{[%clk 0:00:17.6]} 61... h6 {[%clk 0:00:24.1]} 62. g4 {[%clk 0:00:17]} 62... g5
{[%clk 0:00:24.5]} 63. hxg5 {[%clk 0:00:17.2]} 63... hxg5 {[%clk 0:00:25.4]} 64.
Bd7 {[%clk 0:00:17.8]} 64... Ra1+ {[%clk 0:00:25.5]} 65. Kg2 {[%clk 0:00:18]}
65... Ke1 {[%clk 0:00:26]} 66. Kg3 {[%clk 0:00:16.2]} 66... Ra3+ {[%clk
0:00:25.6]} 67. f3 {[%clk 0:00:16.3]} 67... Kd2 {[%clk 0:00:20.7]} 68. Bc6
{[%clk 0:00:14]} 68... Ke2 {[%clk 0:00:20.8]} 69. Bb5+ {[%clk 0:00:12.6]} 69...
Ke1 {[%clk 0:00:20.4]} 70. Kg2 {[%clk 0:00:11.9]} 70... Ra2+ {[%clk 0:00:20.7]}
71. Kg3 {[%clk 0:00:12.4]} 71... Rb2 {[%clk 0:00:19.5]} 72. Bc6 {[%clk 0:00:13]}
72... Ra2 {[%clk 0:00:14.9]} 73. Bb5 {[%clk 0:00:11.5]} 73... Kd2 {[%clk
0:00:15.2]} 74. Bc6 {[%clk 0:00:11.4]} 74... Ke3 {[%clk 0:00:15.9]} 75. Bb5
{[%clk 0:00:10.7]} 75... Kd4 {[%clk 0:00:15.8]} 76. Bc6 {[%clk 0:00:10.2]} 76...
Ra1 {[%clk 0:00:16.2]} 77. Kf2 {[%clk 0:00:09.9]} 77... Ke5 {[%clk 0:00:16.6]}
78. Ke3 {[%clk 0:00:08.7]} 78... Ra3+ {[%clk 0:00:15.8]} 79. Kd2 {[%clk
0:00:08.7]} 79... Kd6 {[%clk 0:00:16.2]} 80. Be4 {[%clk 0:00:05.8]} 80... Rxa4
{[%clk 0:00:16.6]} 81. Ke3 {[%clk 0:00:05.5]} 81... Ke5 {[%clk 0:00:17]} 82. Bd3
{[%clk 0:00:06.1]} 82... Ra3 {[%clk 0:00:17.4]} 83. Ke2 {[%clk 0:00:04.2]} 83...
Kf4 {[%clk 0:00:16.4]} 84. Be4 {[%clk 0:00:04.6]} 84... Ra2+ {[%clk 0:00:16.4]}
85. Kf1 {[%clk 0:00:04.7]} 85... Kg3 {[%clk 0:00:16.1]} 86. Ke1 {[%clk
0:00:04.7]} 86... Rf2 {[%clk 0:00:16.1]} 87. Bd5 {[%clk 0:00:04.3]} 87... Rxf3
{[%clk 0:00:16.4]} 88. Bxf3 {[%clk 0:00:04.3]} 88... Kxf3 {[%clk 0:00:17.3]} 89.
Kf1 {[%clk 0:00:04.2]} 89... Kxg4 {[%clk 0:00:17.1]} 90. Kg2 {[%clk 0:00:04.6]}
90... Kf4 {[%clk 0:00:17.6]} 91. Kf2 {[%clk 0:00:04.6]} 91... g4 {[%clk
0:00:18.5]} 92. Kg2 {[%clk 0:00:04.3]} 92... g3 {[%clk 0:00:19.3]} 93. Kg1
{[%clk 0:00:03.8]} 93... Kg4 {[%clk 0:00:20.2]} 94. Kg2 {[%clk 0:00:03.8]} 94...
Kf4 {[%clk 0:00:20.3]} 95. Kg1 {[%clk 0:00:04.1]} 95... Kf3 {[%clk 0:00:21.2]}
96. Kf1 {[%clk 0:00:04.6]} 96... g2+ {[%clk 0:00:21.3]} 97. Kg1 {[%clk
0:00:05.1]} 97... Kg3 {[%clk 0:00:22.2]} 1/2-1/2

[Event "Early-Titled-Tuesday-Blitz-May-07-2024"]
[Site "Chess.com"]
[Date "2024.05.07"]
[Round "1"]
[White "carokannlover213"]
[Black "Vasily85"]
[Result "0-1"]
[WhiteElo "2740"]
[BlackElo "2455"]
[TimeControl "180+1"]
[EndTime "8:10:09 PDT"]
[Termination "Vasily85 won by resignation"]

1. Nf3 {[%clk 0:03:00.6]} 1... Nf6 {[%clk 0:02:50.6]} 2. c4 {[%clk 0:02:59.2]}
2... e6 {[%clk 0:02:50.4]} 3. g3 {[%clk 0:02:59.2]} 3... d5 {[%clk 0:02:50.8]}
4. Bg2 {[%clk 0:03:00.1]} 4... Be7 {[%clk 0:02:49.8]} 5. O-O {[%clk 0:03:01]}
5... O-O {[%clk 0:02:49.8]} 6. b3 {[%clk 0:02:59.7]} 6... c5 {[%clk 0:02:47.6]}
7. cxd5 {[%clk 0:02:56.7]} 7... Nxd5 {[%clk 0:02:48.5]} 8. Bb2 {[%clk
0:02:56.5]} 8... Nc6 {[%clk 0:02:48.2]} 9. Nc3 {[%clk 0:02:56]} 9... Bf6 {[%clk
0:02:43.5]} 10. Qc1 {[%clk 0:02:52.5]} 10... b6 {[%clk 0:02:37.6]} 11. Nxd5
{[%clk 0:02:50.7]} 11... exd5 {[%clk 0:02:37.6]} 12. d4 {[%clk 0:02:49.6]} 12...
Nxd4 {[%clk 0:02:35.7]} 13. Nxd4 {[%clk 0:02:49]} 13... cxd4 {[%clk 0:02:33.1]}
14. Qd2 {[%clk 0:02:48.2]} 14... Ba6 {[%clk 0:02:29]} 15. Rfe1 {[%clk
0:02:43.9]} 15... Re8 {[%clk 0:02:27.4]} 16. Bf3 {[%clk 0:02:43.4]} 16... d3
{[%clk 0:02:18.8]} 17. Bxf6 {[%clk 0:02:20.8]} 17... Qxf6 {[%clk 0:02:19.7]} 18.
Bxd5 {[%clk 0:02:21.1]} 18... Rxe2 {[%clk 0:01:22.9]} 19. Qxe2 {[%clk 0:01:55]}
19... dxe2 {[%clk 0:01:23.8]} 20. Bxa8 {[%clk 0:01:55.2]} 20... h5 {[%clk
0:01:15.7]} 21. h4 {[%clk 0:01:53.7]} 21... Bd3 {[%clk 0:01:10.1]} 22. Kg2
{[%clk 0:01:50.9]} 22... Qd4 {[%clk 0:00:54.6]} 23. Rac1 {[%clk 0:01:24.1]}
23... g6 {[%clk 0:00:48.7]} 24. Bf3 {[%clk 0:01:20.3]} 24... Qb2 {[%clk
0:00:43.2]} 25. Rc8+ {[%clk 0:00:41.1]} 25... Kg7 {[%clk 0:00:42.7]} 26. Rd8
{[%clk 0:00:40.8]} 26... Qc3 {[%clk 0:00:32]} 27. Rxe2 {[%clk 0:00:17.3]} 27...
Bxe2 {[%clk 0:00:32.2]} 28. Bxe2 {[%clk 0:00:18.2]} 28... Qb2 {[%clk 0:00:32.3]}
29. Bc4 {[%clk 0:00:15.7]} 29... Qxa2 {[%clk 0:00:32.5]} 30. Rd7 {[%clk
0:00:15.4]} 30... a5 {[%clk 0:00:30.5]} 31. Rxf7+ {[%clk 0:00:15.5]} 31... Kh6
{[%clk 0:00:30.9]} 32. Rd7 {[%clk 0:00:11.9]} 32... Qb2 {[%clk 0:00:23.7]} 33.
Bg8 {[%clk 0:00:11.1]} 33... Qh8 {[%clk 0:00:24.2]} 34. Bc4 {[%clk 0:00:08.4]}
34... Qc8 {[%clk 0:00:22.2]} 35. Re7 {[%clk 0:00:04.1]} 35... Qc6+ {[%clk
0:00:20.8]} 36. Kg1 {[%clk 0:00:04.7]} 36... Qf6 {[%clk 0:00:19.8]} 37. Ra7
{[%clk 0:00:04.6]} 37... Qa1+ {[%clk 0:00:17.7]} 38. Kg2 {[%clk 0:00:04.6]}
38... Qf6 {[%clk 0:00:17]} 39. Kg1 {[%clk 0:00:04.5]} 39... Qc3 {[%clk 0:00:16]}
40. Bg8 {[%clk 0:00:03]} 40... Qh8 {[%clk 0:00:16.1]} 41. Bc4 {[%clk 0:00:03.4]}
41... g5 {[%clk 0:00:16.5]} 42. hxg5+ {[%clk 0:00:03]} 42... Kxg5 {[%clk
0:00:17.4]} 43. Rd7 {[%clk 0:00:02.7]} 43... Qc3 {[%clk 0:00:15.7]} 44. Rd5+
{[%clk 0:00:02.7]} 44... Kh6 {[%clk 0:00:15.6]} 45. Rd6+ {[%clk 0:00:02.5]}
45... Kg7 {[%clk 0:00:15.4]} 46. Rxb6 {[%clk 0:00:03.4]} 46... a4 {[%clk
0:00:14.6]} 47. Rb7+ {[%clk 0:00:03.1]} 47... Kh6 {[%clk 0:00:14.2]} 48. Rb6+
{[%clk 0:00:03]} 48... Kg7 {[%clk 0:00:14.1]} 49. Rb7+ {[%clk 0:00:02.8]} 49...
Kf8 {[%clk 0:00:14.4]} 50. Be6 {[%clk 0:00:01.7]} 50... a3 {[%clk 0:00:13.2]}
51. Bd5 {[%clk 0:00:01.3]} 51... a2 {[%clk 0:00:12.8]} 52. Rf7+ {[%clk
0:00:02.2]} 52... Ke8 {[%clk 0:00:12.8]} 53. Ra7 {[%clk 0:00:03.1]} 53... a1=Q+
{[%clk 0:00:13]} 54. Rxa1 {[%clk 0:00:03.8]} 54... Qxa1+ {[%clk 0:00:13.9]} 55.
Kg2 {[%clk 0:00:04.7]} 55... Qc3 {[%clk 0:00:14.7]} 56. Bc4 {[%clk 0:00:04.6]}
56... Ke7 {[%clk 0:00:14.4]} 57. Be2 {[%clk 0:00:05.1]} 57... Qxb3 {[%clk
0:00:12.3]} 58. Bxh5 {[%clk 0:00:05.5]} 58... Kf6 {[%clk 0:00:11.9]} 59. Bf3
{[%clk 0:00:06.4]} 59... Qb2 {[%clk 0:00:11.7]} 60. Bc6 {[%clk 0:00:06.4]} 60...
Kg5 {[%clk 0:00:11.9]} 61. Be4 {[%clk 0:00:06.6]} 61... Kf6 {[%clk 0:00:12.3]}
62. Kf3 {[%clk 0:00:06.6]} 62... Ke5 {[%clk 0:00:13.1]} 63. Bg6 {[%clk
0:00:06.7]} 63... Kd4 {[%clk 0:00:13.3]} 64. g4 {[%clk 0:00:06.5]} 64... Qd2
{[%clk 0:00:12.4]} 65. Bf5 {[%clk 0:00:05.3]} 65... Ke5 {[%clk 0:00:12.5]} 66.
Kg3 {[%clk 0:00:05.4]} 66... Qf4+ {[%clk 0:00:13.4]} 67. Kg2 {[%clk 0:00:04.9]}
67... Kf6 {[%clk 0:00:14.3]} 68. Bc8 {[%clk 0:00:02.3]} 68... Kg5 {[%clk
0:00:15.2]} 69. Bf5 {[%clk 0:00:02.7]} 69... Qd2 {[%clk 0:00:15.2]} 70. Kg3
{[%clk 0:00:02.7]} 70... Qd6+ {[%clk 0:00:14.8]} 71. Kg2 {[%clk 0:00:03.5]}
71... Kf4 {[%clk 0:00:14.9]} 72. Kh3 {[%clk 0:00:03.7]} 72... Qd1 {[%clk
0:00:14]} 73. Kg2 {[%clk 0:00:04.6]} 73... Qe1 {[%clk 0:00:13.8]} 74. Bc8 {[%clk
0:00:03.1]} 74... Ke5 {[%clk 0:00:13.4]} 75. Bf5 {[%clk 0:00:04]} 75... Kd4
{[%clk 0:00:12.7]} 76. Kg3 {[%clk 0:00:04.9]} 76... Qe5+ {[%clk 0:00:11.9]} 77.
Kh4 {[%clk 0:00:05]} 77... Qh2+ {[%clk 0:00:11]} 78. Kg5 {[%clk 0:00:05.5]}
78... Qxf2 {[%clk 0:00:11.9]} 79. Kf6 {[%clk 0:00:06.4]} 79... Qh4+ {[%clk
0:00:10.8]} 80. g5 {[%clk 0:00:06.2]} 80... Qh8+ {[%clk 0:00:10.7]} 81. Kf7
{[%clk 0:00:06]} 81... Qh5+ {[%clk 0:00:10.2]} 82. Kf6 {[%clk 0:00:04.1]} 82...
Kd5 {[%clk 0:00:10.2]} 83. g6 {[%clk 0:00:03.7]} 83... Qh6 {[%clk 0:00:09.1]}
84. Kf7 {[%clk 0:00:03.8]} 84... Qh5 {[%clk 0:00:07.5]} 85. Kf6 {[%clk
0:00:03.2]} 85... Qh4+ {[%clk 0:00:07.9]} 86. Kf7 {[%clk 0:00:02.7]} 86... Qg5
{[%clk 0:00:08.1]} 87. Be6+ {[%clk 0:00:02]} 87... Ke5 {[%clk 0:00:08.4]} 88. g7
{[%clk 0:00:02.5]} 88... Qf6+ {[%clk 0:00:08.7]} 89. Ke8 {[%clk 0:00:02.5]}
89... Qxe6+ {[%clk 0:00:08.9]} 90. Kf8 {[%clk 0:00:03.4]} 90... Qf6+ {[%clk
0:00:09.1]} 91. Kg8 {[%clk 0:00:04.3]} 91... Kf5 {[%clk 0:00:09]} 92. Kh8 {[%clk
0:00:02.9]} 92... Qh4+ {[%clk 0:00:09.1]} 93. Kg8 {[%clk 0:00:03.8]} 93... Kg6
{[%clk 0:00:10]} 94. Kf8 {[%clk 0:00:04.2]} 94... Qf6+ {[%clk 0:00:10.5]} 95.
Ke8 {[%clk 0:00:04.1]} 95... Qxg7 {[%clk 0:00:11.4]} 0-1

[Event "Early-Titled-Tuesday-Blitz-May-07-2024"]
[Site "Chess.com"]
[Date "2024.05.07"]
[Round "1"]
[White "zajka-molotok"]
[Black "mishanick"]
[Result "1/2-1/2"]
[WhiteElo "2540"]
[BlackElo "3045"]
[TimeControl "180+1"]
[EndTime "8:10:12 PDT"]
[Termination "Game drawn by repetition"]

1. d4 {[%clk 0:02:58.7]} 1... Nf6 {[%clk 0:02:59.8]} 2. c4 {[%clk 0:02:58.9]}
2... e6 {[%clk 0:02:59.9]} 3. Nc3 {[%clk 0:02:57]} 3... d5 {[%clk 0:03:00]} 4.
cxd5 {[%clk 0:02:56.2]} 4... exd5 {[%clk 0:03:00.9]} 5. Bg5 {[%clk 0:02:56.1]}
5... c6 {[%clk 0:03:01.6]} 6. e3 {[%clk 0:02:56.4]} 6... Be7 {[%clk 0:03:01.3]}
7. Bd3 {[%clk 0:02:55.7]} 7... h6 {[%clk 0:03:01.3]} 8. Bh4 {[%clk 0:02:55.5]}
8... O-O {[%clk 0:03:00.1]} 9. Nge2 {[%clk 0:02:55.4]} 9... Nbd7 {[%clk
0:02:54.2]} 10. O-O {[%clk 0:02:54.8]} 10... Nh5 {[%clk 0:02:48.3]} 11. Bxe7
{[%clk 0:02:53.6]} 11... Qxe7 {[%clk 0:02:49.2]} 12. Rb1 {[%clk 0:02:47.3]}
12... a5 {[%clk 0:02:43.3]} 13. a3 {[%clk 0:02:46.7]} 13... Nhf6 {[%clk
0:02:40.2]} 14. Qc2 {[%clk 0:02:45.6]} 14... Nb6 {[%clk 0:02:38.6]} 15. Rfc1
{[%clk 0:02:31.1]} 15... Bg4 {[%clk 0:02:36.6]} 16. h3 {[%clk 0:02:29.2]} 16...
Bxe2 {[%clk 0:02:36]} 17. Qxe2 {[%clk 0:02:28.9]} 17... a4 {[%clk 0:02:31.9]}
18. Qc2 {[%clk 0:02:24.9]} 18... Ra7 {[%clk 0:02:27.3]} 19. Re1 {[%clk
0:02:24.3]} 19... Rd8 {[%clk 0:02:25.5]} 20. Rbd1 {[%clk 0:02:23.8]} 20... Qd6
{[%clk 0:02:15.2]} 21. Qe2 {[%clk 0:02:21.7]} 21... Raa8 {[%clk 0:02:11.3]} 22.
f3 {[%clk 0:02:19.5]} 22... Nh5 {[%clk 0:02:07.8]} 23. Qf2 {[%clk 0:02:19.2]}
23... Qg3 {[%clk 0:01:58.3]} 24. Qxg3 {[%clk 0:02:17.4]} 24... Nxg3 {[%clk
0:01:58.3]} 25. Kf2 {[%clk 0:02:16.9]} 25... Nh5 {[%clk 0:01:58.9]} 26. g4
{[%clk 0:02:07.3]} 26... Nf6 {[%clk 0:01:59.1]} 27. h4 {[%clk 0:02:07.7]} 27...
g6 {[%clk 0:01:59.7]} 28. g5 {[%clk 0:02:06.1]} 28... hxg5 {[%clk 0:01:59.6]}
29. hxg5 {[%clk 0:02:07]} 29... Nfd7 {[%clk 0:01:56.1]} 30. e4 {[%clk
0:02:04.2]} 30... dxe4 {[%clk 0:01:45.7]} 31. fxe4 {[%clk 0:02:05.1]} 31... Nf8
{[%clk 0:01:43.2]} 32. Bc2 {[%clk 0:01:35]} 32... Ra5 {[%clk 0:01:38]} 33. d5
{[%clk 0:01:25.9]} 33... cxd5 {[%clk 0:01:36.8]} 34. exd5 {[%clk 0:01:22.7]}
34... Nh7 {[%clk 0:01:03.8]} 35. Rg1 {[%clk 0:01:11.5]} 35... Kg7 {[%clk
0:00:49.3]} 36. Be4 {[%clk 0:01:07.9]} 36... Rd6 {[%clk 0:00:47.2]} 37. Rd4
{[%clk 0:01:03.4]} 37... Nf8 {[%clk 0:00:42.7]} 38. Rb4 {[%clk 0:01:02.4]} 38...
Nfd7 {[%clk 0:00:26.7]} 39. Ke3 {[%clk 0:01:00.9]} 39... Nc5 {[%clk 0:00:24.2]}
40. Rd1 {[%clk 0:00:49.7]} 40... Nbd7 {[%clk 0:00:23.6]} 41. Kf4 {[%clk
0:00:44.9]} 41... f6 {[%clk 0:00:21.5]} 42. gxf6+ {[%clk 0:00:43.5]} 42... Rxf6+
{[%clk 0:00:22.4]} 43. Ke3 {[%clk 0:00:40.6]} 43... Ra8 {[%clk 0:00:23]} 44. Kd4
{[%clk 0:00:35.4]} 44... Rf4 {[%clk 0:00:20.2]} 45. Ke3 {[%clk 0:00:21.5]} 45...
g5 {[%clk 0:00:18]} 46. Rg1 {[%clk 0:00:20.7]} 46... Kf6 {[%clk 0:00:11]} 47. d6
{[%clk 0:00:20.6]} 47... Rh4 {[%clk 0:00:07.8]} 48. Nd5+ {[%clk 0:00:19.6]}
48... Ke6 {[%clk 0:00:07.8]} 49. Rxg5 {[%clk 0:00:18.1]} 49... Kxd6 {[%clk
0:00:05.2]} 50. Rg6+ {[%clk 0:00:17.8]} 50... Ke5 {[%clk 0:00:05.6]} 51. Rg5+
{[%clk 0:00:18]} 51... Kd6 {[%clk 0:00:05.6]} 52. Rg6+ {[%clk 0:00:18.2]} 52...
Ne6 {[%clk 0:00:04.8]} 53. Nb6 {[%clk 0:00:12.3]} 53... Rah8 {[%clk 0:00:02.3]}
54. Nxd7 {[%clk 0:00:11.7]} 54... Kxd7 {[%clk 0:00:03]} 55. Rxb7+ {[%clk
0:00:11.4]} 55... Kc8 {[%clk 0:00:03.8]} 56. Rxe6 {[%clk 0:00:10.9]} 56... Rxe4+
{[%clk 0:00:03.9]} 57. Rxe4 {[%clk 0:00:10.8]} 57... Kxb7 {[%clk 0:00:04.8]} 58.
Rxa4 {[%clk 0:00:10.6]} 58... Rh3+ {[%clk 0:00:05.5]} 59. Kd2 {[%clk 0:00:08.7]}
59... Kb6 {[%clk 0:00:06.1]} 60. Kc2 {[%clk 0:00:08.7]} 60... Kb5 {[%clk
0:00:06.2]} 61. Rb4+ {[%clk 0:00:09]} 61... Ka5 {[%clk 0:00:06.9]} 62. Rg4
{[%clk 0:00:09.6]} 62... Rh2+ {[%clk 0:00:06.7]} 63. Kb3 {[%clk 0:00:09.6]}
63... Rh3+ {[%clk 0:00:07.2]} 64. Ka2 {[%clk 0:00:09.8]} 64... Rh2 {[%clk
0:00:07.9]} 65. Rg3 {[%clk 0:00:08.7]} 65... Ka4 {[%clk 0:00:07.7]} 66. Rg4+
{[%clk 0:00:08.1]} 66... Ka5 {[%clk 0:00:07.7]} 67. Rc4 {[%clk 0:00:08.2]} 67...
Rg2 {[%clk 0:00:07.7]} 68. Kb3 {[%clk 0:00:07.6]} 68... Rg3+ {[%clk 0:00:07.4]}
69. Rc3 {[%clk 0:00:07.8]} 69... Rg5 {[%clk 0:00:07.4]} 70. Rh3 {[%clk
0:00:06.4]} 70... Rb5+ {[%clk 0:00:07]} 71. Kc3 {[%clk 0:00:05.7]} 71... Rc5+
{[%clk 0:00:07.2]} 72. Kb3 {[%clk 0:00:05.5]} 72... Rb5+ {[%clk 0:00:07.8]} 73.
Ka2 {[%clk 0:00:05.8]} 73... Rg5 {[%clk 0:00:08.4]} 74. Rh4 {[%clk 0:00:03.7]}
74... Rg2 {[%clk 0:00:08]} 75. Kb3 {[%clk 0:00:03.3]} 75... Rg3+ {[%clk
0:00:08.2]} 76. Kc2 {[%clk 0:00:03.4]} 76... Rg2+ {[%clk 0:00:08.6]} 77. Kb1
{[%clk 0:00:03]} 77... Rg1+ {[%clk 0:00:09.1]} 78. Ka2 {[%clk 0:00:02.8]} 78...
Rg2 {[%clk 0:00:09.8]} 79. Rc4 {[%clk 0:00:02.9]} 79... Rh2 {[%clk 0:00:08.1]}
80. Kb3 {[%clk 0:00:03.2]} 80... Rh3+ {[%clk 0:00:07.7]} 81. Rc3 {[%clk
0:00:04.1]} 81... Rh5 {[%clk 0:00:08.4]} 82. Rd3 {[%clk 0:00:04.2]} 82... Rb5+
{[%clk 0:00:07.7]} 83. Kc2 {[%clk 0:00:04.5]} 83... Rc5+ {[%clk 0:00:07.5]} 84.
Rc3 {[%clk 0:00:05.1]} 84... Rh5 {[%clk 0:00:07.5]} 85. b3 {[%clk 0:00:05.2]}
85... Rh2+ {[%clk 0:00:07.6]} 86. Kb1 {[%clk 0:00:05.7]} 86... Rh1+ {[%clk
0:00:05.1]} 87. Rc1 {[%clk 0:00:05]} 87... Rh2 {[%clk 0:00:04.8]} 88. Rc2 {[%clk
0:00:04.6]} 88... Rh1+ {[%clk 0:00:05.3]} 89. Kb2 {[%clk 0:00:05]} 89... Rh4
{[%clk 0:00:05.4]} 90. Rc5+ {[%clk 0:00:04.6]} 90... Kb6 {[%clk 0:00:06]} 91. b4
{[%clk 0:00:04.9]} 91... Rh3 {[%clk 0:00:06.5]} 92. Rc3 {[%clk 0:00:05]} 92...
Rh1 {[%clk 0:00:07]} 93. Kb3 {[%clk 0:00:05.4]} 93... Rb1+ {[%clk 0:00:04.8]}
94. Ka4 {[%clk 0:00:05.6]} 94... Rh1 {[%clk 0:00:05.5]} 95. Rg3 {[%clk
0:00:05.6]} 95... Rh6 {[%clk 0:00:06.1]} 96. Rg5 {[%clk 0:00:05.8]} 96... Rf6
{[%clk 0:00:06.1]} 97. Re5 {[%clk 0:00:05.9]} 97... Rh6 {[%clk 0:00:06.3]} 98.
Rg5 {[%clk 0:00:05.9]} 98... Rf6 {[%clk 0:00:06.7]} 99. Rg3 {[%clk 0:00:05.4]}
99... Rh6 {[%clk 0:00:06.1]} 100. Kb3 {[%clk 0:00:05.7]} 100... Rf6 {[%clk
0:00:05.7]} 101. a4 {[%clk 0:00:06.1]} 101... Ka6 {[%clk 0:00:06.2]} 102. Rc3
{[%clk 0:00:06]} 102... Rh6 {[%clk 0:00:06.8]} 103. a5 {[%clk 0:00:05.9]} 103...
Rh1 {[%clk 0:00:04.7]} 104. Rc6+ {[%clk 0:00:03.9]} 104... Kb7 {[%clk
0:00:05.1]} 105. Rg6 {[%clk 0:00:03.7]} 105... Rh5 {[%clk 0:00:04.6]} 106. Ka4
{[%clk 0:00:03.8]} 106... Rh4 {[%clk 0:00:05.3]} 107. Kb5 {[%clk 0:00:03.3]}
107... Rh5+ {[%clk 0:00:05.8]} 108. Ka4 {[%clk 0:00:03.4]} 108... Rh4 {[%clk
0:00:06.4]} 109. Rg7+ {[%clk 0:00:03.8]} 109... Ka6 {[%clk 0:00:06.2]} 110. Rg6+
{[%clk 0:00:03.8]} 110... Kb7 {[%clk 0:00:06.6]} 1/2-1/2

[Event "Early-Titled-Tuesday-Blitz-May-07-2024"]
[Site "Chess.com"]
[Date "2024.05.07"]
[Round "2"]
[White "sofaceindisguise"]
[Black "Valeron87"]
[Result "1-0"]
[WhiteElo "2741"]
[BlackElo "2453"]
[TimeControl "180+1"]
[EndTime "8:14:38 PDT"]
[Termination "sofaceindisguise won by resignation"]

1. Nf3 {[%clk 0:02:59]} 1... d5 {[%clk 0:03:00]} 2. g3 {[%clk 0:02:58.1]} 2...
Nf6 {[%clk 0:02:59.5]} 3. Bg2 {[%clk 0:02:59]} 3... c5 {[%clk 0:02:59.7]} 4. O-O
{[%clk 0:02:59.9]} 4... Nc6 {[%clk 0:02:59.5]} 5. d3 {[%clk 0:03:00.8]} 5... e5
{[%clk 0:02:58.3]} 6. Nbd2 {[%clk 0:03:01.7]} 6... Bd6 {[%clk 0:02:53.9]} 7. e4
{[%clk 0:03:01.8]} 7... d4 {[%clk 0:02:54.1]} 8. a4 {[%clk 0:03:01.8]} 8... O-O
{[%clk 0:02:50.7]} 9. Nc4 {[%clk 0:03:02.1]} 9... Bc7 {[%clk 0:02:51.3]} 10. Nh4
{[%clk 0:03:02.2]} 10... b6 {[%clk 0:02:47]} 11. Bd2 {[%clk 0:03:02.5]} 11... a6
{[%clk 0:02:46.9]} 12. Nf5 {[%clk 0:03:01.6]} 12... b5 {[%clk 0:02:45.4]} 13.
axb5 {[%clk 0:03:01.3]} 13... Ne7 {[%clk 0:02:39.4]} 14. Nxe7+ {[%clk
0:02:59.1]} 14... Qxe7 {[%clk 0:02:40.3]} 15. b6 {[%clk 0:02:59.5]} 15... Bd6
{[%clk 0:02:37.1]} 16. f4 {[%clk 0:02:59.7]} 16... Nd7 {[%clk 0:02:30.3]} 17.
Bh3 {[%clk 0:02:57.6]} 17... Rb8 {[%clk 0:02:22.5]} 18. Bxd7 {[%clk 0:02:55.8]}
18... Bxd7 {[%clk 0:02:22.6]} 19. fxe5 {[%clk 0:02:56.2]} 19... Bxe5 {[%clk
0:02:22.1]} 20. Nxe5 {[%clk 0:02:55.8]} 20... Qxe5 {[%clk 0:02:19.4]} 21. Bf4
{[%clk 0:02:56.1]} 1-0